bitfinex/quotes_ETHUSD_20241123
["timestamp","ask_amount","ask_price","bid_price","bid_amount"]
[1732389911096,0.27239801,3428.1,3427.8,2.33385]
[1732389911326,0.27239801,3428.0,3427.8,2.33385]
[1732389911493,0.27239801,3427.9,3427.8,2.33385]
[1732389912191,0.27239801,3427.9,3427.5,0.291]
[1732389912393,0.27239801,3427.8,3427.5,2.62504]
[1732389912623,2.9169,3428.3,3427.5,0.291]
[1732389912624,0.27239801,3427.7,3427.5,0.291]
[1732389912832,0.27239801,3427.6,3427.5,0.291]
[1732389913097,0.30225174,3427.6,3427.1,0.1]
[1732389913294,0.27239801,3427.5,3427.3,2.33419]
[1732389913534,0.30214247,3427.4,3427.3,2.33419]
[1732389913731,0.27239801,3427.4,3427.3,2.33419]
[1732389914133,0.30214247,3427.4,3427.3,2.33419]
[1732389916035,0.30214247,3427.4,3427.0,0.291]
[1732389916243,0.27239801,3427.3,3427.0,0.291]
[1732389916425,0.27239801,3427.2,3427.0,0.291]
[1732389916603,0.27239801,3427.1,3427.0,0.291]
[1732389916805,0.30193964,3427.1,3427.0,0.291]
[1732389917001,0.30193964,3427.1,3427.0,2.3344]
[1732389917201,0.27239801,3427.1,3427.0,2.4344]
[1732389917401,0.27239801,3427.1,3427.0,3.2139]
[1732389917602,0.27239801,3427.1,3427.0,3.5049]
[1732389918241,0.27239801,3427.1,3427.0,3.4049]
[1732389920002,0.27239801,3427.1,3427.0,3.53407863]
[1732389920197,0.27239801,3427.1,3427.0,4.18433382]
[1732389920825,0.27239801,3427.1,3427.0,4.15515519]
[1732389921027,3.0,3428.3,3427.7,2.33387]
[1732389921249,3.0,3428.3,3427.6,0.291]
[1732389921406,3.508722,3428.2,3427.6,0.291]
[1732389921605,2.91716,3428.0,3427.6,0.291]
[1732389921807,2.91716,3428.0,3427.1,2.33431]
[1732389921808,3.46739,3427.8,3427.1,2.33431]
[1732389922017,0.638457,3427.7,3427.1,2.33431]
[1732389922222,0.82231392,3427.6,3427.1,2.33431]
[1732389922506,0.27231392,3427.5,3427.1,2.33431]
[1732389922737,0.27231392,3427.4,3427.1,2.33431]
[1732389922917,0.27231392,3427.3,3427.1,2.33431]
[1732389923113,0.27231392,3427.2,3427.1,2.33431]
[1732389923848,0.27226385,3427.2,3427.1,2.33431]
[1732389924049,0.30186844,3427.2,3427.1,2.33431]
[1732389924408,0.27226385,3427.2,3427.1,2.33431]
[1732389925644,0.27226385,3427.2,3427.1,2.33433]
[1732389925992,0.30540513,3427.2,3427.1,2.33433]
[1732389926956,0.27226385,3427.2,3427.1,2.33433]
[1732389927256,0.27226385,3427.2,3427.1,2.43433]
[1732389928023,0.27226385,3427.2,3427.1,2.431335]
[1732389928724,0.27226385,3427.2,3427.1,2.331335]
[1732389929161,0.03314128,3427.2,3427.0,2.6254]
[1732389929458,0.27230819,3427.1,3427.0,2.6254]
[1732389929673,0.3053868,3427.1,3427.0,2.6254]
[1732389929880,0.27230819,3427.1,3427.0,0.291]
[1732389930193,0.30097632,3427.1,3427.0,2.6254]
[1732389930487,0.27230819,3427.1,3427.0,2.65457868]
[1732389930650,0.27230819,3427.1,3427.0,2.6254]
[1732389931364,0.27230819,3427.1,3427.0,3.4358]
[1732389938794,0.27230819,3427.1,3427.0,4.23375867]
[1732389939191,3.0,3428.8,3427.9,2.04202]
[1732389939492,3.0,3428.6,3427.9,2.33302]
[1732389939798,0.27258511,3428.5,3427.9,2.33302]
[1732389939998,0.27258511,3428.4,3427.9,2.33302]
[1732389940195,0.27258511,3428.4,3428.0,2.33299]
[1732389940196,0.27258511,3428.3,3428.0,2.33299]
[1732389940397,0.27258511,3428.2,3428.0,2.33299]
[1732389940597,0.27258511,3428.1,3428.0,2.33299]
[1732389940798,0.27258511,3428.1,3428.0,0.291]
[1732389941727,0.27258511,3428.1,3427.6,0.291]
[1732389941902,0.27258511,3428.0,3427.6,0.291]
[1732389942104,0.27258511,3427.9,3427.6,0.291]
[1732389942322,0.27258511,3427.8,3427.6,2.33319]
[1732389942514,0.27258178,3427.7,3427.6,2.33319]
[1732389942710,0.3036204,3427.7,3427.6,2.33319]
[1732389943327,0.3036204,3427.7,3427.5,0.291]
[1732389943506,0.27258178,3427.6,3427.5,0.291]
[1732389943911,0.30594533,3427.6,3427.5,0.291]
[1732389944430,0.30594533,3427.6,3427.3,0.1]
[1732389944728,0.27258178,3427.5,3427.3,0.1]
[1732389944933,0.27258178,3427.4,3427.3,0.1]
[1732389945109,0.30344586,3427.4,3427.3,0.1]
[1732389946000,0.30344586,3427.4,3427.2,2.33347]
[1732389946200,0.272595,3427.3,3427.2,2.33347]
[1732389947845,0.30577669,3427.3,3427.2,2.33347]
[1732389948904,0.272595,3427.3,3427.2,2.33347]
[1732389949350,0.30577669,3427.3,3427.2,2.33347]
[1732389950141,0.03318169,3427.3,3427.2,2.33347]
[1732389950315,0.30579031,3427.3,3427.2,2.33347]
[1732389950510,2.91716,3428.0,3427.2,2.33347]
[1732389950856,0.85604199,3427.9,3427.2,0.291]
[1732389951154,0.27262499,3427.8,3427.4,2.33333]
[1732389951452,0.30605731,3427.7,3427.4,2.33333]
[1732389951614,0.27262499,3427.6,3427.4,0.291]
[1732389951818,0.27262499,3427.5,3427.4,0.291]
[1732389952139,0.305932,3427.5,3427.4,0.291]
[1732389952356,0.305932,3427.5,3427.4,2.43336]
[1732389952857,0.03330701,3427.5,3427.4,2.43336]
[1732389953028,2.91717,3428.0,3427.4,2.33336]
[1732389953348,0.291699,3428.1,3427.5,2.0423]
[1732389953557,0.03355761,3427.9,3427.5,2.0423]
[1732389953849,0.3208689,3428.0,3427.4,0.291]
[1732389953850,0.03349497,3427.8,3427.4,0.291]
[1732389954146,2.9173,3427.9,3427.3,0.291]
[1732389954352,3.24108689,3427.9,3427.3,0.291]
[1732389954718,0.03105213,3427.7,3427.3,0.291]
[1732389954941,0.03350341,3427.8,3427.3,0.291]
[1732389955143,0.03337811,3427.6,3427.3,0.291]
[1732389955328,0.03344076,3427.7,3427.3,0.291]
[1732389955536,0.03331545,3427.5,3427.3,0.291]
[1732389955849,0.03325279,3427.4,3427.3,0.291]
[1732389956027,0.38569026,3427.7,3427.3,0.291]
[1732389956255,0.03325279,3427.4,3427.3,2.33342]
[1732389956496,0.27263959,3427.4,3427.3,2.33342]
[1732389956783,0.30589238,3427.4,3427.3,2.33342]
[1732389960643,0.30589238,3427.4,3427.3,0.291]
[1732389963587,0.30589238,3427.4,3427.3,2.33342]
[1732389963811,0.30589238,3427.4,3427.1,2.33354]
[1732389964010,0.27263959,3427.3,3427.1,0.291]
[1732389964216,0.27263959,3427.2,3427.1,0.291]
[1732389964507,0.27263959,3427.2,3427.1,2.33354]
[1732389965699,0.30575247,3427.2,3427.1,2.33354]
[1732389965901,0.27263959,3427.2,3427.1,2.33354]
[1732389967314,0.27263959,3427.2,3427.1,2.36271765]
[1732389967510,0.27263959,3427.2,3427.1,3.17871765]
[1732389968008,0.27268537,3427.2,3427.1,3.17871765]
[1732389968212,0.27268537,3427.2,3427.1,3.14954]
[1732389970119,0.27268537,3427.2,3427.1,1.107]
[1732389970274,0.27268537,3427.2,3427.1,0.291]
[1732389970470,0.30580132,3427.2,3427.1,0.291]
[1732389971111,0.30580132,3427.2,3427.1,2.33354]
[1732389971344,0.30580132,3427.2,3427.1,0.291]
[1732389971558,0.27268537,3427.2,3427.1,0.291]
[1732389972024,0.30595727,3427.2,3427.1,0.291]
[1732389972228,0.03311595,3427.2,3427.1,0.291]
[1732389972410,0.2728743,3427.2,3427.1,0.291]
[1732389972614,0.30599025,3427.2,3427.1,0.291]
[1732389973348,0.30599025,3427.2,3427.1,2.33354]
[1732389973925,0.30599025,3427.2,3427.1,0.291]
[1732389974717,0.30599025,3427.2,3427.1,2.33354]
[1732389975469,0.30599025,3427.2,3427.1,0.291]
[1732389975778,0.30599025,3427.2,3427.0,0.1]
[1732389975779,0.62836028,3427.2,3427.0,0.291]
[1732389975928,0.2728743,3427.1,3427.0,0.291]
[1732389976366,0.30356166,3427.1,3427.0,0.291]
[1732389976745,0.30356166,3427.1,3426.9,0.291]
[1732389977079,0.2728743,3427.0,3426.9,0.291]
[1732389977372,0.30585956,3427.0,3426.9,0.291]
[1732389977673,0.2728743,3427.0,3426.9,0.291]
[1732389978175,0.30585956,3427.0,3426.9,0.291]
[1732389978731,0.62822752,3427.0,3426.9,0.291]
[1732389979128,0.62822752,3427.0,3426.9,2.33366]
[1732389979129,0.30585956,3427.0,3426.9,2.33366]
[1732389979546,0.30585956,3427.0,3426.9,3.16106]
[1732389979979,0.2728743,3427.0,3426.9,3.16106]
[1732389981776,0.2728743,3427.0,3426.9,1.1184]
[1732389981940,0.2728743,3427.0,3426.9,0.291]
[1732389982142,0.03298526,3427.0,3426.9,0.291]
[1732389982454,0.30582177,3427.0,3426.9,0.291]
[1732389982977,0.30582177,3427.0,3426.9,2.33366]
[1732389983130,0.30582177,3427.0,3426.9,3.16106]
[1732389983633,0.30579557,3427.0,3426.9,3.16106]
[1732389983831,0.03298526,3427.0,3426.9,1.1184]
[1732389984071,2.91772,3427.4,3426.9,0.291]
[1732389984272,0.30360749,3427.3,3426.9,0.291]
[1732389984474,0.2728116,3427.2,3427.1,2.14254]
[1732389984770,0.2728116,3427.2,3427.1,3.26094]
[1732389985136,0.31456824,3427.2,3427.1,3.26094]
[1732389986873,0.31456824,3427.2,3427.1,1.2184]
[1732389987463,0.04175664,3427.2,3427.1,1.2184]
[1732389987692,0.27281455,3427.2,3427.1,1.2184]
[1732389987979,0.31455423,3427.2,3427.1,1.2184]
[1732389990993,0.31455423,3427.2,3427.1,0.391]
[1732389991297,0.27281455,3427.2,3427.1,0.391]
[1732389991648,2.91764,3427.5,3427.1,0.391]
[1732389991853,0.04190261,3427.4,3427.1,0.391]
[1732389994691,0.04190261,3427.4,3427.1,2.14171]
[1732389994994,2.91741,3427.7,3427.1,2.14171]
[1732389995294,2.91741,3427.7,3427.1,0.391]
[1732389995453,0.04206852,3427.6,3427.1,0.391]
[1732389995657,3.54724337,3427.6,3427.1,0.391]
[1732389997391,3.54724337,3427.6,3427.4,1.2147]
[1732389997392,0.04206852,3427.6,3427.4,1.2147]
[1732389997892,2.9172,3428.0,3427.4,1.2147]
[1732389998058,0.03817641,3427.5,3427.4,1.2147]
[1732389998258,3.20897,3427.9,3427.4,1.2147]
[1732389998487,0.03839854,3427.8,3427.4,1.2147]
[1732389998703,2.95578854,3427.8,3427.4,1.2147]
[1732390000583,2.91744,3427.7,3427.4,0.391]
[1732390000794,3.53391085,3427.7,3427.4,0.391]
[1732390001000,0.0420755,3427.6,3427.4,0.391]
[1732390002883,2.91732,3427.8,3427.4,0.391]
[1732390003097,0.04216892,3427.7,3427.4,0.391]
[1732390003297,2.9172,3428.0,3427.4,0.391]
[1732390003598,3.22535301,3427.9,3427.4,0.391]
[1732390003799,0.27282651,3427.8,3427.4,0.391]
[1732390004099,0.30796727,3427.7,3427.4,0.391]
[1732390004283,0.27282651,3427.6,3427.4,0.391]
[1732390004471,0.27282651,3427.5,3427.4,0.391]
[1732390004673,0.3110138,3427.5,3427.4,0.391]
[1732390006909,0.31100149,3427.5,3427.4,0.391]
[1732390007222,0.31100149,3427.5,3427.4,3.21233607]
[1732390007522,0.2728142,3427.5,3427.4,3.21233607]
[1732390008393,0.2728142,3427.5,3427.4,1.43257147]
[1732390008622,0.2728142,3427.5,3427.4,3.18316147]
[1732390010413,0.2728142,3427.5,3427.4,3.21233267]
[1732390010913,0.2728142,3427.5,3427.4,1.43257147]
[1732390011118,0.30786825,3427.5,3427.4,1.43257147]
[1732390012025,0.30786825,3427.5,3427.4,1.222697]
[1732390012205,0.2728142,3427.5,3427.4,0.398997]
[1732390012784,0.31105498,3427.5,3427.4,0.398997]
[1732390013221,0.31105498,3427.5,3427.4,0.007997]
[1732390013382,3.55147948,3427.5,3427.4,0.007997]
[1732390015379,3.55147948,3427.5,3427.1,0.0078]
[1732390015584,2.91783,3427.2,3427.1,0.0078]
[1732390015780,3.23239385,3427.2,3427.1,0.0078]
[1732390017011,6.78239385,3427.2,3427.1,0.0078]
[1732390017225,8.07644869,3427.2,3427.1,0.0078]
[1732390018324,7.80363449,3427.2,3427.1,0.0078]
[1732390018621,8.07585108,3427.2,3427.1,0.0078]
[1732390018788,8.07570639,3427.2,3427.1,0.0078]
[1732390018985,7.80363449,3427.2,3427.1,0.0078]
[1732390019187,8.07570069,3427.2,3427.1,0.0078]
[1732390022010,3.55,3427.1,3426.8,0.03746]
[1732390022228,6.46808,3426.9,3426.8,0.03746]
[1732390022391,6.7401462,3426.9,3426.8,0.03746]
[1732390022592,6.78141496,3426.9,3426.8,0.03746]
[1732390022839,2.92004,3424.6,3424.5,0.291]
[1732390023134,2.92004,3424.6,3423.9,0.8789]
[1732390023135,0.5640702,3424.6,3423.9,0.8789]
[1732390023297,0.2720662,3424.5,3423.9,0.8789]
[1732390023498,0.2720662,3424.4,3424.1,0.1]
[1732390023801,3.1924362,3424.3,3424.1,0.1]
[1732390023947,2.92039,3424.2,3424.1,0.1]
[1732390024145,0.31547174,3424.2,3423.9,0.8789]
[1732390024356,2.92056,3424.0,3423.9,0.8789]
[1732390024537,3.1926262,3424.0,3423.9,0.8789]
[1732390024730,3.62464577,3424.0,3423.9,0.8789]
[1732390024920,3.66786994,3424.0,3423.9,0.8789]
[1732390025337,3.23458518,3424.0,3423.9,0.8789]
[1732390027214,2.96378417,3424.0,3423.9,0.8789]
[1732390027649,0.04322417,3424.0,3423.9,0.8789]
[1732390027936,2.9204,3424.2,3423.9,0.8789]
[1732390028121,2.92022,3424.4,3423.9,0.8789]
[1732390028322,2.92054,3424.1,3423.9,0.8789]
[1732390029153,0.291999,3424.6,3423.9,0.8789]
[1732390029311,2.92054,3424.1,3423.9,0.8789]
[1732390029815,0.04322417,3424.0,3423.9,0.8789]
[1732390030417,2.92056,3424.0,3423.9,0.8789]
[1732390030613,2.96378417,3424.0,3423.9,0.8789]
[1732390031040,2.96378417,3424.0,3423.9,0.1]
[1732390031819,2.96378417,3424.0,3423.7,0.1]
[1732390032857,2.92065,3423.9,3423.7,0.1]
[1732390033055,2.92073,3423.8,3423.7,0.1]
[1732390033350,2.92073,3423.8,3423.0,0.61903045]
[1732390033351,0.66800274,3423.8,3423.3,0.8834]
[1732390033559,2.92107,3423.4,3423.3,0.1]
[1732390035354,2.92107,3423.4,3423.0,0.7834]
[1732390035355,2.92124,3423.2,3423.1,0.1]
[1732390035717,2.92124,3423.2,3423.0,0.7834]
[1732390035718,3.505471,3423.2,3423.0,0.7834]
[1732390036040,2.92132,3423.1,3423.0,0.7834]
[1732390036362,2.92132,3423.1,3422.9,0.1]
[1732390036716,3.505471,3423.2,3422.7,0.8834]
[1732390036917,2.92149,3422.9,3422.7,0.8834]
[1732390037118,2.92158,3422.8,3422.7,0.8834]
[1732390037364,2.92167,3422.7,3422.5,0.1]
[1732390038655,2.92144,3423.0,3422.5,0.1]
[1732390038841,2.92132,3423.2,3422.7,0.1]
[1732390039045,2.92073,3423.8,3423.1,0.8834]
[1732390039218,0.67802599,3423.7,3423.1,0.8834]
[1732390039423,0.31717099,3423.6,3423.1,0.8834]
[1732390039665,0.04789442,3423.6,3423.1,0.8834]
[1732390039952,0.03651396,3424.2,3423.1,0.8834]
[1732390040121,0.04779237,3423.5,3423.1,0.8834]
[1732390040618,2.92081,3423.7,3423.1,1.1744]
[1732390040823,3.23822624,3423.6,3423.1,1.1744]
[1732390041035,2.96881442,3423.6,3423.1,1.1744]
[1732390041445,0.26959874,3423.5,3423.1,1.1744]
[1732390041649,0.04779237,3423.5,3423.1,1.1744]
[1732390042017,2.92091,3423.6,3423.1,1.1744]
[1732390042223,0.04779237,3423.5,3423.4,0.291]
[1732390042417,0.04779237,3423.5,3423.3,0.1]
[1732390042418,2.92078,3423.8,3423.3,0.391]
[1732390042639,0.31785267,3423.7,3423.3,0.391]
[1732390043183,0.04799647,3423.7,3423.3,0.391]
[1732390043479,2.92091,3423.6,3423.3,0.391]
[1732390043684,2.92107,3423.4,3423.3,0.391]
[1732390043860,3.19100591,3423.4,3423.3,0.391]
[1732390044244,3.85042329,3423.4,3423.1,0.8834]
[1732390044476,0.27014725,3423.3,3423.1,0.8834]
[1732390044778,3.19132725,3423.3,3423.1,0.1]
[1732390044950,3.19139725,3423.2,3423.0,0.291]
[1732390045156,2.92125,3423.2,3423.1,0.1]
[1732390045390,0.27040323,3423.2,3423.1,0.1]
[1732390045751,0.27040323,3423.2,3423.1,0.391]
[1732390047152,0.70373824,3423.2,3423.1,0.391]
[1732390047353,3.62497824,3423.2,3423.1,0.391]
[1732390047589,4.27959306,3423.2,3423.0,0.291]
[1732390047755,3.62505824,3423.1,3423.0,0.291]
[1732390047958,3.62508824,3423.1,3422.6,0.291]
[1732390048144,0.70373824,3423.0,3422.6,0.291]
[1732390048350,0.27040323,3422.9,3422.6,0.291]
[1732390048589,0.27040323,3422.8,3422.6,0.291]
[1732390048888,0.27040323,3422.7,3422.6,0.291]
[1732390049485,2.92158,3422.8,3422.7,0.291]
[1732390049782,3.19301272,3422.8,3422.7,0.291]
[1732390050082,1.06802243,3422.8,3422.7,0.291]
[1732390050387,0.63412385,3422.8,3422.7,0.291]
[1732390050547,1.06802243,3422.8,3422.6,0.291]
[1732390050747,0.27143272,3422.7,3422.6,0.291]
[1732390051601,0.27143272,3422.8,3422.6,0.291]
[1732390051782,0.27143272,3422.7,3422.6,0.291]
[1732390052309,0.27171477,3422.7,3422.6,0.291]
[1732390052901,3.19338477,3422.7,3422.6,0.291]
[1732390053105,4.32836903,3422.7,3422.4,0.291]
[1732390053265,4.32836903,3422.7,3422.3,0.1]
[1732390053266,0.74298038,3422.6,3422.3,0.391]
[1732390053572,0.7064584,3422.5,3422.3,0.391]
[1732390053792,0.67982241,3422.4,3422.3,0.391]
[1732390054692,0.67982241,3422.4,3422.3,0.1]
[1732390055043,0.67982241,3422.4,3422.3,0.391]
[1732390055324,1.11456604,3422.4,3422.3,0.391]
[1732390055687,0.40810764,3422.4,3422.3,0.1]
[1732390055920,0.68015326,3422.4,3422.3,0.1]
[1732390056088,0.68015326,3422.4,3422.3,0.391]
[1732390056289,1.11542626,3422.4,3422.3,0.391]
[1732390056494,0.27204562,3422.4,3422.3,0.391]
[1732390057499,0.27204562,3422.4,3422.2,0.291]
[1732390057716,0.27204562,3422.3,3422.2,0.291]
[1732390059834,0.27204562,3422.3,3422.1,0.1]
[1732390059993,0.27204562,3422.2,3422.1,0.1]
[1732390060394,0.27204562,3422.2,3422.1,2.609]
[1732390061354,0.27204562,3422.2,3422.1,0.8557]
[1732390062263,0.27204562,3422.2,3421.9,0.1]
[1732390062463,2.92246,3421.8,3421.5,0.7557]
[1732390062628,0.70731862,3421.7,3421.3,0.1]
[1732390062826,0.27204562,3421.6,3421.5,0.1]
[1732390063062,0.27204562,3421.6,3421.1,0.8557]
[1732390063063,0.70804809,3421.6,3421.1,0.8557]
[1732390063363,3.28559186,3421.6,3421.1,0.8557]
[1732390063583,0.70784166,3421.5,3421.1,0.8557]
[1732390063750,0.70784166,3421.4,3421.1,0.8557]
[1732390064069,0.27224679,3421.3,3421.1,0.8557]
[1732390064228,0.27224679,3421.2,3421.1,0.8557]
[1732390064863,0.27224679,3421.2,3421.1,0.1]
[1732390065270,0.27224679,3421.2,3421.0,0.007919]
[1732390065429,0.27224679,3421.1,3421.0,0.007919]
[1732390066674,0.86163758,3421.2,3421.0,0.007919]
[1732390066675,0.42604271,3421.2,3421.0,0.007919]
[1732390066986,2.92279,3421.4,3421.0,0.007919]
[1732390066987,0.27189024,3421.1,3421.0,0.007919]
[1732390068047,0.4715624,3421.3,3421.0,0.007919]
[1732390068048,0.03653801,3421.3,3421.0,0.007919]
[1732390068252,0.27178398,3421.1,3421.0,0.007919]
[1732390069194,0.24081006,3421.1,3421.0,0.007919]
[1732390074188,0.03653801,3421.3,3421.0,0.007919]
[1732390074401,2.92278,3421.4,3421.0,0.007919]
[1732390074574,1.0134418,3421.3,3421.0,0.007919]
[1732390074778,1.447948,3421.3,3421.0,0.007919]
[1732390076094,4.370818,3421.3,3421.0,0.007919]
[1732390076273,3.3574762,3421.2,3421.0,0.007919]
[1732390076523,3.39407671,3421.1,3421.0,0.007919]
[1732390076926,3.3575362,3421.1,3421.0,0.007919]
[1732390077120,4.03083788,3421.1,3421.0,0.007919]
[1732390077450,4.4834485,3421.1,3421.0,0.007919]
[1732390077659,4.03083788,3421.1,3421.0,0.007919]
[1732390077948,4.03083788,3421.1,3420.6,0.1519013]
[1732390077949,2.92323,3420.9,3420.6,0.1519013]
[1732390078163,1.16624363,3420.8,3420.6,0.1519013]
[1732390079429,1.1296995,3420.8,3420.6,0.1519013]
[1732390079614,0.43429271,3420.8,3420.6,0.1519013]
[1732390079836,3.35758271,3420.8,3420.6,0.1519013]
[1732390080044,0.43429271,3420.7,3420.6,0.1519013]
[1732390080285,0.45238824,3421.2,3420.9,0.1]
[1732390080459,0.43429271,3421.3,3420.9,0.1]
[1732390080460,0.292285,3421.3,3420.9,0.1]
[1732390081288,0.27132585,3421.2,3420.9,0.1]
[1732390081493,0.27132585,3421.1,3420.9,0.1]
[1732390081663,0.27132585,3421.0,3420.9,0.1]
[1732390082096,0.14868295,3421.2,3420.9,0.1]
[1732390082097,0.27132585,3421.1,3420.9,0.1]
[1732390082262,0.27132585,3421.0,3420.9,0.1]
[1732390082463,0.27132585,3421.4,3420.9,0.1]
[1732390082656,0.27132585,3421.3,3420.9,0.1]
[1732390082861,0.27132585,3421.2,3420.9,0.1]
[1732390083077,0.27132585,3421.1,3421.0,0.1]
[1732390084605,2.95897772,3421.8,3421.0,0.1]
[1732390084897,0.45245608,3421.5,3421.0,0.1]
[1732390085210,0.27147365,3421.4,3421.0,0.1]
[1732390085493,0.27147365,3421.3,3421.0,0.1]
[1732390085669,0.27147365,3421.2,3421.0,0.1]
[1732390085869,0.27147365,3421.1,3421.0,0.1]
[1732390086859,0.27147365,3421.1,3420.7,2.33865]
[1732390086860,0.27147365,3421.1,3420.8,0.1]
[1732390087062,0.92335163,3421.3,3421.0,0.1]
[1732390087260,0.27153556,3421.2,3421.0,0.1]
[1732390087601,0.27153556,3421.1,3421.0,0.1]
[1732390089607,0.7058934,3421.1,3420.8,0.1]
[1732390089788,0.27153556,3421.0,3420.8,0.1]
[1732390089988,0.27153556,3421.0,3420.6,3.3129513]
[1732390089989,0.27153556,3420.9,3420.6,1.0742013]
[1732390090167,0.27153556,3420.8,3420.6,1.0742013]
[1732390090505,0.27153556,3420.7,3420.6,0.1519013]
[1732390090817,0.27153556,3420.7,3420.6,0.2519013]
[1732390091019,0.27153556,3420.7,3420.6,0.1519013]
[1732390091362,0.7058934,3420.7,3420.6,0.1519013]
[1732390091560,0.03654392,3421.1,3420.6,0.1519013]
[1732390091785,0.4534084,3420.9,3420.6,0.1519013]
[1732390091996,1.1607255,3420.8,3420.6,0.1519013]
[1732390092206,0.7073171,3420.7,3420.6,0.1519013]
[1732390092507,1.1607255,3420.7,3420.6,0.1519013]
[1732390093179,0.7073171,3420.7,3420.1,0.1]
[1732390093504,0.45393321,3420.5,3420.1,0.1]
[1732390093801,1.16125031,3420.4,3420.1,0.1]
[1732390093958,0.7073171,3420.3,3420.1,0.1]
[1732390094165,0.7073171,3420.2,3420.1,0.1]
[1732390096379,0.03654685,3420.7,3420.1,0.1]
[1732390096579,0.70766096,3420.6,3420.1,0.1]
[1732390096784,0.70766096,3420.5,3420.1,0.1]
[1732390097019,0.70766096,3420.4,3419.6,3.0]
[1732390097310,0.70766096,3420.3,3419.0,0.1]
[1732390097506,2.92424,3419.7,3419.0,0.1]
[1732390097669,0.74422035,3419.6,3419.0,0.1]
[1732390097998,0.74422035,3419.6,3418.4,0.58114418]
[1732390097999,0.70766096,3419.5,3418.6,0.759]
[1732390098210,0.70766096,3419.5,3417.6,0.12925092]
[1732390098211,0.74422462,3419.4,3417.6,0.12925092]
[1732390098514,2.92498,3418.9,3417.8,0.1]
[1732390098666,2.9248,3419.1,3417.8,0.1]
[1732390098667,3.66925267,3418.8,3417.8,0.1]
[1732390098972,0.70766096,3418.7,3417.8,0.1]
[1732390099173,1.11115758,3418.6,3417.8,0.1]
[1732390099377,0.27217729,3418.5,3417.8,0.1]
[1732390099601,0.27217729,3418.4,3417.8,0.1]
[1732390099811,0.03657135,3418.6,3417.8,0.1]
[1732390099812,0.27217729,3418.3,3417.8,0.1]
[1732390100007,0.27217729,3418.2,3417.8,0.1]
[1732390100165,0.27217729,3418.1,3417.8,0.1]
[1732390100367,0.03657133,3418.4,3417.8,0.1]
[1732390100670,0.2705299,3418.3,3417.9,0.1]
[1732390100867,0.30710123,3418.2,3417.9,0.1]
[1732390101067,0.2705299,3418.1,3417.9,0.1]
[1732390101413,0.03657132,3418.9,3417.9,0.1]
[1732390101707,0.27030628,3418.8,3417.9,0.1]
[1732390101907,0.30687758,3418.7,3417.9,0.1]
[1732390102070,0.27030628,3418.6,3417.9,0.1]
[1732390102265,0.03657129,3418.5,3417.7,0.1]
[1732390102496,0.27030628,3418.4,3417.6,0.759]
[1732390102696,0.0365762,3418.3,3417.2,0.2519013]
[1732390103013,0.33276482,3418.3,3417.4,0.1]
[1732390103197,0.2701081,3418.2,3417.2,3.1519013]
[1732390103515,0.3066861,3418.1,3417.2,3.1519013]
[1732390103715,0.2701081,3418.0,3417.2,3.1519013]
[1732390103873,0.036578,3418.1,3417.2,3.1519013]
[1732390103874,0.2701081,3417.9,3417.2,0.1519013]
[1732390104073,0.46875094,3418.5,3417.5,3.02603]
[1732390104278,0.26989417,3418.4,3417.5,3.02603]
[1732390104575,0.26989417,3418.3,3417.6,2.92602]
[1732390104770,0.26989417,3418.2,3417.6,2.92602]
[1732390105007,0.03657445,3418.6,3417.6,2.92602]
[1732390105209,0.26974232,3418.5,3417.6,2.92602]
[1732390105412,0.30631676,3418.4,3417.6,2.92602]
[1732390105710,0.26974232,3418.3,3417.7,2.92593]
[1732390105903,0.43217296,3418.8,3418.0,2.92568]
[1732390106105,0.3062052,3418.7,3418.0,2.92568]
[1732390106300,0.26963405,3418.6,3418.0,2.92568]
[1732390106791,0.26963405,3418.9,3417.9,0.859]
[1732390106988,0.1856198,3418.8,3417.6,3.02602]
[1732390107205,3.1106298,3418.8,3417.6,3.02602]
[1732390107380,1.03895429,3418.7,3417.6,3.02602]
[1732390107716,0.30616311,3418.6,3417.5,3.0]
[1732390108012,2.92537,3418.4,3417.3,3.0]
[1732390108196,3.55474946,3418.3,3417.3,3.0]
[1732390108406,0.26958937,3418.2,3417.2,0.1519013]
[1732390108607,3.23176985,3418.1,3417.2,0.1519013]
[1732390108779,0.26958937,3418.0,3417.2,0.1519013]
[1732390109098,0.30616986,3417.9,3417.2,0.1519013]
[1732390109299,0.26958937,3417.8,3417.2,0.1519013]
[1732390109623,0.03658049,3417.7,3417.2,0.1519013]
[1732390109786,0.37215331,3417.9,3417.2,0.1519013]
[1732390109993,0.30570972,3417.8,3417.2,0.1519013]
[1732390110208,0.0365805,3417.8,3417.2,0.1519013]
[1732390111025,0.46705224,3418.4,3417.4,2.92619]
[1732390111333,0.26904937,3418.3,3417.2,3.9842513]
[1732390111529,0.03657869,3418.2,3417.2,3.9842513]
[1732390111831,0.59580917,3418.1,3417.4,2.92619]
[1732390112006,0.26904937,3418.0,3417.4,2.92619]
[1732390112337,0.03657869,3418.2,3417.4,2.92619]
[1732390112509,0.26898425,3418.1,3417.4,2.92619]
[1732390112710,0.03657869,3418.2,3417.4,0.1]
[1732390113034,0.3467051,3418.2,3417.7,2.92586]
[1732390113331,0.43033025,3418.7,3417.7,2.92586]
[1732390113531,0.59529342,3418.6,3417.8,2.92581]
[1732390113737,0.26897156,3418.5,3417.6,0.1]
[1732390113976,0.26897156,3418.4,3417.6,0.1]
[1732390114230,0.26895504,3418.3,3417.6,0.1]
[1732390114553,0.26896127,3418.2,3417.4,0.391]
[1732390114837,3.72557318,3418.4,3417.4,0.1]
[1732390114995,1.07194669,3418.3,3417.4,0.1]
[1732390115198,0.26899912,3418.2,3417.4,3.02618]
[1732390115536,0.26899912,3418.1,3417.4,3.02618]
[1732390115735,1.05846528,3418.4,3417.4,3.02618]
[1732390116028,0.2690598,3418.3,3417.4,0.1]